bitfinex/quotes_ETHUSD_20251224
["timestamp","ask_amount","ask_price","bid_price","bid_amount"]
[1766597067550,0.002,2943.7,2943.0,4.2942541]
[1766597067966,3.7292,2943.9,2943.5,4.81978944]
[1766597068176,7.12588553,2944.1,2943.3,0.884]
[1766597068374,7.12588553,2944.1,2943.4,0.03397431]
[1766597068541,3.7292,2944.0,2943.4,0.03397431]
[1766597069376,3.7292,2944.3,2943.5,4.81978944]
[1766597069576,3.7292,2944.3,2943.6,0.033972]
[1766597069751,0.06790019,2944.5,2943.6,1.19880517]
[1766597070071,3.7312,2944.2,2943.6,1.16483317]
[1766597070273,3.7312,2944.2,2943.5,3.39725411]
[1766597070466,3.7312,2944.2,2943.4,3.39737519]
[1766597071155,3.7312,2944.2,2943.4,4.28137519]
[1766597071360,3.7312,2944.2,2943.5,3.39731267]
[1766597073893,3.7312,2944.2,2943.5,8.21710211]
[1766597075172,3.7312,2944.2,2943.6,0.033972]
[1766597076596,3.7312,2944.2,2943.5,8.21710211]
[1766597078208,6.83251452,2944.2,2943.5,8.21710211]
[1766597078387,3.434,2944.1,2943.5,9.38527341]
[1766597079701,3.434,2944.1,2943.5,5.98796074]
[1766597079905,3.434,2944.1,2943.5,0.001]
[1766597080088,3.434,2944.1,2943.7,4.81978944]
[1766597080287,0.002,2944.2,2943.7,4.85376029]
[1766597080606,0.002,2944.2,2943.7,8.25083797]
[1766597080904,0.002,2944.2,2943.7,8.21686712]
[1766597081107,3.39628983,2944.4,2943.7,8.21686712]
[1766597081518,3.39608758,2944.6,2944.0,4.81978944]
[1766597081690,3.434,2944.7,2944.0,4.81978944]
[1766597081880,3.50190019,2944.7,2944.0,4.81978944]
[1766597082080,0.68977622,2944.6,2944.0,4.81978944]
[1766597082283,4.08590487,2944.6,2944.0,4.81978944]
[1766597083913,0.68977622,2944.6,2944.0,4.81978944]
[1766597084113,0.002,2944.9,2944.3,4.81978944]
[1766597084407,3.39565109,2945.0,2944.3,4.81978944]
[1766597085388,3.39750081,2945.1,2944.3,8.25013641]
[1766597085589,0.002,2945.1,2944.3,8.21617248]
[1766597085805,3.3974865,2945.1,2944.3,8.21617248]
[1766597086116,4.5154612,2945.1,2944.4,0.03396277]
[1766597086486,0.002,2944.6,2944.4,3.43021736]
[1766597086814,4.5154813,2945.1,2944.4,0.03396277]
[1766597087204,1.1199747,2945.1,2944.4,3.43021361]
[1766597087596,4.51544998,2945.1,2944.4,0.03396277]
[1766597087921,3.434,2945.1,2944.4,0.03396277]
[1766597088087,3.434,2945.1,2944.3,8.21608629]
[1766597088287,3.434,2945.1,2944.4,0.03396277]
[1766597088605,6.82949576,2945.1,2944.4,0.03396277]
[1766597092430,3.434,2945.1,2944.4,0.03396277]
[1766597092631,4.11693115,2945.1,2944.4,3.43021831]
[1766597092787,7.51240241,2945.1,2944.4,0.03396277]
[1766597093823,7.51440241,2945.1,2944.4,0.03396277]
[1766597096224,0.06790019,2944.8,2944.1,0.884]
[1766597096411,3.50190019,2944.7,2943.6,3.89]
[1766597096607,3.434,2944.5,2943.7,3.43101954]
[1766597096921,3.46796277,2944.4,2943.7,3.430985]
[1766597097222,3.46796277,2944.4,2943.9,3.39679944]
[1766597097525,3.46796277,2944.4,2943.9,3.43076798]
[1766597099526,0.03396277,2944.4,2943.9,6.82762249]
[1766597099725,0.06790019,2945.2,2943.9,6.82762249]
[1766597099726,6.82977838,2944.9,2944.1,4.81978944]
[1766597099926,6.82977838,2944.9,2944.1,4.85375567]
[1766597100430,3.46796277,2944.8,2944.1,4.81978944]
[1766597100628,0.002,2944.4,2944.1,4.81978944]
[1766597100825,0.002,2944.4,2944.0,2.08270858]
[1766597101031,0.002,2944.4,2944.1,0.45615406]
[1766597101798,3.3015,2944.4,2944.1,0.45615406]
[1766597101998,3.33346277,2944.3,2943.7,3.3970305]
[1766597102819,3.33346277,2944.3,2943.6,4.2811474]
[1766597103232,3.33346277,2944.3,2943.7,0.03397085]
[1766597103419,3.2995,2944.2,2943.6,0.884]
[1766597103736,3.33346277,2944.1,2943.6,0.884]
[1766597104428,3.33346277,2944.1,2943.6,4.281191]
[1766597104829,0.03396277,2944.1,2943.6,4.281191]
[1766597105133,3.3015,2944.4,2943.7,0.46558727]
[1766597105715,3.2995,2944.3,2943.7,0.43161642]
[1766597107118,3.2995,2944.3,2943.7,3.82867442]
[1766597107315,3.2995,2944.3,2943.8,0.03396969]
[1766597108435,0.002,2944.4,2943.8,0.03396969]
[1766597108635,0.002,2944.4,2943.9,0.38626441]
[1766597109436,3.3015,2944.4,2943.7,0.43161642]
[1766597110128,3.3015,2944.4,2943.7,0.46558727]
[1766597110336,3.3015,2944.4,2943.7,3.86265643]
[1766597110633,3.3015,2944.4,2943.8,3.3969535]
[1766597111231,3.3015,2944.4,2943.7,3.86262853]
[1766597111407,3.3015,2944.4,2943.8,1.29646002]
[1766597111826,3.2995,2944.3,2943.6,0.001]
[1766597112008,3.2995,2944.3,2943.6,0.034972]
[1766597113346,3.2995,2944.2,2943.6,0.034972]
[1766597113847,3.2995,2944.2,2943.6,3.43215571]
[1766597115346,3.39832304,2944.4,2943.6,3.43215571]
[1766597115544,0.002,2944.4,2943.7,0.77144602]
[1766597116638,0.002,2944.4,2943.8,0.03396969]
[1766597116950,3.2995,2944.9,2943.9,4.81978944]
[1766597117115,3.2995,2944.9,2944.2,4.81978944]
[1766597117317,3.39581635,2944.8,2944.0,0.03396739]
[1766597117535,3.2995,2944.7,2944.1,0.9134538]
[1766597118130,3.2995,2944.7,2943.9,0.884]
[1766597118641,3.2995,2944.7,2943.9,4.28083579]
[1766597118949,3.2995,2944.7,2944.0,3.43068071]
[1766597119544,6.69550993,2944.7,2944.0,0.03396739]
[1766597119748,3.2995,2944.6,2943.7,0.77144602]
[1766597119919,3.36740019,2944.6,2943.6,0.034972]
[1766597120119,3.36740019,2944.6,2943.6,3.43212022]
[1766597120946,3.36740019,2944.6,2943.6,0.034972]
[1766597121651,3.2995,2944.3,2943.6,0.001]
[1766597121819,3.2995,2944.1,2943.6,0.001]
[1766597123765,3.2995,2944.0,2943.6,0.001]
[1766597127065,6.69624006,2944.0,2943.6,0.001]
[1766597127577,3.2995,2944.0,2943.6,0.001]
[1766597128162,6.69625701,2944.0,2943.6,0.001]
[1766597128866,3.2995,2944.0,2943.6,0.001]
[1766597129664,6.69623981,2944.0,2943.6,0.001]
[1766597131367,3.1351,2944.0,2943.6,0.001]
[1766597133463,6.53187271,2944.0,2943.6,0.001]
[1766597133966,3.1351,2944.0,2943.6,0.001]
[1766597134366,6.53184688,2944.0,2943.6,0.001]
[1766597134863,3.39674688,2944.0,2943.6,0.001]
[1766597135167,3.1351,2943.9,2943.6,0.001]
[1766597136070,3.1351,2943.9,2943.0,4.28184059]
[1766597136071,3.1351,2943.8,2943.0,4.28184059]
[1766597136367,3.1351,2943.8,2943.1,3.39775207]
[1766597136558,3.1351,2943.8,2943.2,0.03397662]
[1766597137569,3.1351,2943.8,2943.2,3.43161999]
[1766597138171,3.39680209,2944.0,2943.2,4.20297086]
[1766597138784,6.64770209,2944.0,2943.2,4.20297086]
[1766597139075,3.2509,2943.9,2943.2,0.03397662]
[1766597139270,3.2509,2943.9,2943.5,0.001]
[1766597139843,3.39668339,2944.1,2943.5,0.001]
[1766597140046,3.73329869,2944.2,2943.5,0.001]
[1766597140372,0.69841987,2944.1,2943.5,0.001]
[1766597140572,3.73329869,2944.2,2943.5,0.001]
[1766597141546,6.98419869,2944.2,2943.5,0.001]
[1766597141744,3.73329869,2944.2,2943.5,0.001]
[1766597142067,3.2509,2944.1,2943.5,0.001]
[1766597142254,6.64758464,2944.1,2943.5,0.001]
[1766597143151,3.2509,2944.0,2943.5,0.001]
[1766597144389,3.2509,2943.9,2943.5,0.001]
[1766597145474,3.2509,2943.9,2943.3,0.03397546]
[1766597145475,3.66066645,2943.9,2943.3,0.03397546]
[1766597145774,3.66066645,2943.9,2943.5,0.001]
[1766597146352,3.2509,2943.8,2943.5,0.001]
[1766597146556,3.2509,2943.8,2943.3,0.03397546]
[1766597147178,3.2509,2943.8,2943.0,3.39784422]
[1766597147546,3.2509,2943.8,2943.1,3.39775486]
[1766597147748,3.2509,2943.8,2942.9,5.43900187]
[1766597147980,3.2509,2943.8,2943.0,0.63230019]
[1766597148291,0.06790019,2943.7,2942.8,0.884]
[1766597148464,3.2509,2943.4,2942.8,0.884]
[1766597148863,3.2509,2943.4,2942.5,6.32443103]
[1766597149382,3.2509,2943.4,2942.6,3.4322805]
[1766597149578,3.2509,2943.3,2942.5,0.885]
[1766597149783,3.2509,2943.3,2942.6,0.03398355]
[1766597150080,3.2509,2943.3,2942.6,3.43228214]
[1766597151065,3.2509,2943.2,2942.6,0.03398355]
[1766597151588,3.2509,2943.2,2942.6,3.43233714]
[1766597155892,3.2509,2943.2,2942.6,6.83069233]
[1766597156099,3.2509,2943.2,2942.6,3.39835359]
[1766597156316,3.2509,2943.2,2942.6,6.83069233]
[1766597156502,3.2509,2943.2,2942.6,7.5649896]
[1766597156702,3.2509,2943.5,2942.6,7.5649896]
[1766597157008,3.2509,2943.5,2942.6,4.16663441]
[1766597157163,3.2509,2943.5,2942.6,3.43233714]
[1766597157164,3.31880019,2943.5,2942.6,3.43233714]
[1766597157621,3.2509,2943.4,2942.6,3.43233714]
[1766597158719,3.2509,2943.4,2942.6,0.03398355]
[1766597158921,3.2509,2943.0,2942.4,0.001]
[1766597159121,3.2509,2942.8,2942.4,0.001]
[1766597159431,3.2509,2942.6,2942.3,0.001]
[1766597159816,0.32848836,2942.7,2942.3,0.001]
[1766597159817,3.2509,2942.4,2942.3,0.001]
[1766597161124,3.2509,2942.4,2942.2,0.001]
[1766597164191,3.11608355,2942.8,2942.2,0.001]
[1766597168934,3.0821,2942.8,2942.2,3.39981169]
[1766597169737,0.03398355,2942.7,2942.2,0.001]
[1766597169944,3.42530626,2942.7,2942.2,0.001]
[1766597170101,3.0821,2942.7,2942.2,0.001]
[1766597175244,3.0821,2942.7,2942.2,0.03498817]
[1766597175543,3.11608355,2942.6,2942.2,0.03498817]
[1766597176645,3.0821,2942.5,2942.2,0.001]
[1766597177227,3.11608355,2942.5,2942.2,0.001]
[1766597177531,3.0821,2942.5,2942.2,0.001]
[1766597178307,0.03398355,2942.7,2942.2,0.001]
[1766597178546,3.15000019,2943.2,2942.2,0.001]
[1766597178869,0.06790019,2943.0,2942.2,0.001]
[1766597179048,0.06790019,2942.8,2942.2,0.001]
[1766597180380,3.15000019,2942.8,2942.2,0.001]
[1766597181855,3.15000019,2942.6,2941.8,0.001]
[1766597182763,3.0821,2942.3,2941.8,0.001]
[1766597183145,3.0821,2942.3,2942.1,0.001]
[1766597185857,3.0821,2942.6,2942.1,0.001]
[1766597186934,3.39837254,2942.6,2942.1,0.001]
[1766597187130,3.0821,2942.5,2942.1,0.001]
[1766597188378,3.0821,2942.5,2942.1,0.03498932]
[1766597193662,3.0821,2942.5,2942.1,0.001]
[1766597195094,2.9086,2942.4,2942.1,0.001]
[1766597200005,2.9106,2942.4,2942.1,0.001]
[1766597201401,0.002,2942.4,2942.1,0.001]
[1766597201702,3.39830253,2942.7,2942.1,0.001]
[1766597202103,4.28409798,2942.9,2942.1,0.001]
[1766597202104,3.39805044,2942.9,2942.1,0.001]
[1766597202396,3.46541989,2943.4,2942.5,4.82174111]
[1766597202397,6.25207491,2943.3,2942.5,4.82174111]
[1766597202724,7.13807491,2943.3,2942.5,4.82174111]
[1766597203009,9.64964982,2943.3,2942.5,4.82174111]
[1766597203375,2.8545,2943.2,2942.2,4.85572928]
[1766597203576,2.8545,2943.2,2942.3,0.57417293]
[1766597203776,2.8545,2943.2,2942.4,0.03398586]
[1766597205189,3.39777785,2943.1,2942.4,0.03398586]
[1766597205582,6.25222282,2943.2,2942.4,3.43255358]
[1766597206111,6.25222282,2943.2,2942.4,0.03398586]
[1766597206403,6.25222282,2943.2,2942.5,0.40068093]
[1766597207802,9.64994564,2943.2,2942.5,0.39388093]
[1766597207995,9.64994564,2943.2,2942.4,0.03398586]
[1766597208202,2.8545,2943.1,2942.4,0.03398586]
[1766597211008,6.252376,2943.1,2942.4,0.03398586]
[1766597211193,2.8545,2943.0,2942.4,0.03398586]
[1766597211383,2.8545,2943.0,2942.4,0.91685122]
[1766597211985,2.8545,2943.0,2942.4,0.03398586]
[1766597212514,2.92240019,2943.0,2942.2,0.03398817]
[1766597213315,6.32040082,2943.0,2942.2,0.03398817]
[1766597213814,9.71840145,2943.0,2942.2,0.03398817]
[1766597214315,6.32040082,2943.0,2942.2,3.43277836]
[1766597214511,10.6972129,2943.0,2942.2,0.03398817]
[1766597214715,7.77481271,2943.0,2942.2,0.03398817]
[1766597214917,10.62931271,2943.0,2942.2,0.03398817]
[1766597216086,3.46597445,2942.9,2942.2,0.03398817]
[1766597221624,3.03060019,2942.5,2942.1,0.001]
[1766597221827,3.03060019,2942.3,2942.1,0.001]
[1766597224421,3.46664498,2942.3,2942.1,0.001]
[1766597224721,2.9627,2942.2,2942.1,0.001]
[1766597225736,3.39881721,2942.2,2941.8,0.001]
[1766597226050,3.37727193,2942.1,2941.8,0.001]
[1766597226228,3.03060019,2942.1,2941.8,0.001]
[1766597229513,2.9627,2942.4,2941.8,0.001]
[1766597229712,3.03060019,2942.9,2942.2,4.82174111]
[1766597229919,3.39820139,2942.8,2942.2,4.82174111]
[1766597230427,3.39820139,2942.8,2941.9,0.885]
[1766597230428,2.9627,2942.8,2941.9,0.885]
[1766597230619,2.9627,2942.8,2942.2,4.82174111]
[1766597230819,2.9627,2942.8,2942.3,0.03398701]
[1766597232027,2.9627,2942.8,2942.2,0.03398817]
[1766597232617,3.03060019,2942.8,2942.2,0.03398817]
[1766597233444,0.06790019,2942.8,2942.2,0.03398817]
[1766597234314,0.06990019,2942.8,2942.2,3.43278277]
[1766597235426,0.002,2943.1,2942.3,4.82174111]
[1766597235746,0.002,2943.1,2942.4,0.03398586]
[1766597236255,0.002,2943.1,2942.4,3.43248074]
[1766597236429,0.002,2943.1,2942.4,6.83106692]
[1766597236622,0.002,2943.1,2942.5,1.2537808]
[1766597236822,0.002,2943.1,2942.6,0.03398355]
[1766597240252,0.002,2943.1,2942.6,3.43233234]
[1766597240763,3.03260019,2943.2,2942.6,3.43233234]
[1766597242565,0.002,2943.1,2942.6,3.43233234]
[1766597242856,0.002,2943.1,2942.7,0.46861131]
[1766597243260,0.002,2943.5,2942.8,0.03398124]
[1766597243837,0.06790019,2943.4,2942.8,0.03398124]
[1766597244056,0.002,2943.5,2942.8,0.03398124]
[1766597244242,0.06790019,2943.4,2942.8,0.03398124]
[1766597244440,0.06790019,2943.4,2942.8,4.1619989]
[1766597245365,0.002,2943.6,2942.8,7.56012313]
[1766597245561,0.002,2943.6,2942.8,7.52614189]
[1766597246662,0.002,2943.6,2942.9,0.03398008]
[1766597248566,0.002,2943.6,2943.0,6.7957866]
[1766597248766,0.002,2943.6,2943.1,0.71695444]
[1766597250860,0.002,2943.6,2943.1,4.11461715]
[1766597251238,3.39664178,2944.1,2943.1,4.11461715]
[1766597251239,0.002,2945.5,2943.5,4.81937716]
[1766597251562,2.6607,2946.1,2945.3,0.17737214]
[1766597251767,0.886,2946.2,2945.5,4.81937716]
[1766597251934,0.886,2946.1,2945.6,0.03394894]
[1766597252363,3.5467,2946.1,2945.6,0.03394894]
[1766597252578,2.6607,2946.1,2945.6,0.03394894]
[1766597252868,3.5467,2946.1,2945.6,0.03394894]
[1766597253068,3.5467,2946.1,2945.7,6.78955766]
[1766597253240,3.5467,2946.1,2945.8,0.03394663]
[1766597253673,2.6607,2946.1,2945.8,0.03394663]
[1766597253975,2.6607,2946.1,2945.5,4.41394301]
[1766597254169,2.6607,2946.1,2945.6,3.42884067]
[1766597255564,2.6607,2946.1,2945.6,6.82373474]
[1766597255770,2.6607,2946.1,2945.6,6.7897858]
[1766597256769,2.6607,2946.1,2945.6,3.39489173]
[1766597256969,2.6607,2946.1,2945.6,3.42884067]
[1766597257353,2.6627,2946.1,2945.6,3.42884067]
[1766597259352,2.6627,2946.1,2945.6,6.82373474]
[1766597259666,2.6627,2946.1,2945.6,7.57405608]
[1766597259978,0.002,2946.1,2945.6,7.57405608]
[1766597260757,0.002,2946.1,2945.7,0.03394778]
[1766597261874,2.6627,2946.1,2945.7,3.42871658]
[1766597262458,2.6627,2946.1,2945.6,3.42882366]
[1766597262661,2.6627,2946.1,2945.6,3.39487472]
[1766597263891,2.6627,2946.1,2945.7,0.03394778]
[1766597264095,2.6627,2946.1,2945.6,3.42878673]
[1766597264594,2.6487,2946.0,2945.6,3.42878673]
[1766597268386,0.887,2946.1,2945.6,3.42878673]
[1766597268387,0.002,2946.1,2945.6,3.42878673]
[1766597268563,2.6487,2946.9,2946.0,4.81937716]
[1766597268763,2.6487,2946.9,2946.1,6.78863582]
[1766597268993,2.6487,2946.9,2946.2,0.03394202]
[1766597269302,3.39346076,2946.9,2946.2,0.03394202]
[1766597269463,3.39346076,2946.9,2946.0,3.39441247]
[1766597269464,3.11677608,2946.8,2946.0,3.39441247]
[1766597269668,3.11677608,2946.8,2946.1,0.03394317]
[1766597269669,2.6487,2946.6,2946.1,0.03394317]
[1766597270194,2.6487,2946.6,2946.0,3.42837081]
[1766597271592,2.6507,2946.6,2946.0,3.42837081]
[1766597272820,2.6487,2946.5,2945.5,0.001]
[1766597273191,2.6487,2946.5,2945.5,3.39594973]
[1766597273394,3.39390652,2946.5,2945.7,3.39474595]
[1766597273596,2.6487,2946.3,2945.7,3.39474595]
[1766597273927,2.6487,2946.3,2945.6,3.42880172]
[1766597274081,2.6487,2946.2,2945.6,3.42880172]
[1766597274810,0.885,2946.2,2945.6,6.82369579]
[1766597275014,0.885,2946.2,2945.6,6.78974685]
[1766597275203,0.885,2946.2,2945.7,0.03394778]
[1766597276094,2.6487,2946.4,2945.7,3.42862523]
[1766597276292,0.885,2946.3,2945.7,3.42862523]
[1766597277292,0.885,2946.3,2945.7,6.82340406]
[1766597277486,3.5337,2946.3,2945.7,7.47189669]
[1766597277687,3.5337,2946.3,2945.7,4.07711786]
[1766597277990,2.6487,2946.2,2945.7,0.71638819]
[1766597278191,2.6487,2946.2,2945.7,0.03394778]
[1766597278533,2.6487,2946.2,2945.5,3.42992151]
[1766597278704,2.6487,2946.2,2945.6,0.03394894]
[1766597279034,2.6487,2946.2,2945.5,0.001]
[1766597279035,2.6487,2946.1,2945.5,0.001]
[1766597279386,3.1169335,2946.1,2945.5,0.001]
[1766597282397,2.6487,2946.1,2945.5,0.001]
[1766597284291,2.6487,2946.1,2945.5,0.03495009]
[1766597285289,0.885,2946.0,2945.5,0.03495009]
[1766597286021,0.885,2946.0,2945.6,3.39489407]
[1766597286318,0.885,2946.0,2945.7,0.03394778]
[1766597289129,0.885,2946.2,2945.7,7.50595656]
[1766597289299,3.6201,2946.6,2945.7,7.47200878]
[1766597289902,7.01385222,2946.6,2945.7,7.47200878]
[1766597290106,2.7351,2946.6,2945.8,0.74720088]
[1766597290399,7.01384378,2946.6,2945.9,0.03394548]
[1766597290600,7.01384378,2946.6,2945.9,3.42846649]
[1766597290800,2.7331,2946.5,2945.9,3.42846649]
[1766597291099,2.7331,2946.5,2945.9,0.03394548]
[1766597291331,2.7331,2946.5,2945.9,3.4284873]
[1766597291831,0.002,2946.6,2945.9,7.57998247]
[1766597292027,0.002,2946.6,2945.9,6.78899323]
[1766597292610,0.002,2946.6,2945.8,7.67332716]
[1766597292929,0.002,2946.6,2945.9,0.03394548]
[1766597293127,0.002,2946.6,2946.0,0.77072726]
[1766597293325,0.002,2946.6,2946.1,0.03394317]
[1766597293326,2.7351,2946.6,2946.1,0.03394317]
[1766597294055,2.7351,2946.6,2946.0,0.77072726]
[1766597295223,2.7331,2946.4,2945.5,4.775]
[1766597295427,2.7331,2946.4,2945.9,0.001]
[1766597297328,2.7331,2946.3,2945.9,0.001]
[1766597299300,2.7331,2946.2,2945.9,0.001]
[1766597300337,2.7331,2946.0,2945.6,0.03394894]
[1766597300840,2.7331,2946.0,2945.5,0.03495009]
[1766597301022,2.7331,2946.0,2945.5,0.001]
[1766597301849,2.7331,2946.2,2945.5,0.001]
[1766597302148,2.7331,2946.5,2945.8,4.80754495]
[1766597303242,2.7331,2946.5,2945.9,0.03394548]
[1766597303751,0.002,2946.6,2946.0,3.39443312]
[1766597303912,0.885,2946.8,2946.1,0.37678103]
[1766597304608,3.6181,2946.8,2946.1,0.37678103]
[1766597305916,3.6181,2946.8,2946.1,3.77109175]
[1766597306136,6.12661327,2946.8,2946.1,0.37678103]
[1766597306646,2.7331,2946.7,2946.1,0.03394317]
[1766597306830,2.7331,2946.7,2945.9,3.39450686]
[1766597307015,2.7331,2946.7,2945.9,3.42845234]
[1766597308347,2.7331,2946.5,2946.0,0.03394433]
[1766597308645,2.7331,2946.5,2945.9,0.03394548]
[1766597309015,2.7331,2946.4,2945.5,7.28589805]
[1766597309215,2.7331,2946.4,2945.6,3.42883283]
[1766597309426,2.7331,2946.4,2945.7,3.39474475]
[1766597309745,2.7331,2946.4,2945.8,0.03394663]
[1766597310646,2.7331,2946.3,2945.7,0.03394778]
[1766597311843,2.7331,2946.3,2945.7,3.4287117]
[1766597312343,2.7331,2946.3,2945.7,4.1111803]
[1766597312721,2.7331,2946.3,2945.7,0.71641638]
[1766597313016,2.9531,2946.2,2945.7,0.03394778]
[1766597313220,2.9531,2946.0,2945.5,0.001]
[1766597316125,3.8381,2946.2,2945.6,4.80773867]
[1766597316451,3.39385711,2946.5,2945.6,4.80773867]
[1766597316452,0.885,2946.4,2945.7,0.48087387]
[1766597316656,3.8381,2946.4,2945.7,0.48087387]
[1766597317449,7.23208243,2946.4,2945.8,0.03394663]
[1766597318351,2.9531,2946.4,2945.8,0.03394663]
[1766597318524,3.6664,2946.6,2945.8,3.42857798]
[1766597318725,2.7814,2946.6,2945.9,5.19868386]
[1766597319028,2.7814,2946.6,2946.0,0.03394433]
[1766597320132,2.7834,2946.6,2945.9,5.19868386]
[1766597320668,3.39385711,2946.5,2945.9,0.39094519]
[1766597320839,6.17525711,2946.5,2945.9,0.39094519]
[1766597323462,3.39385711,2946.5,2945.9,0.39094519]
[1766597323763,2.7814,2946.4,2945.9,0.39094519]
[1766597324468,2.7814,2946.4,2946.0,0.41249715]
[1766597328861,2.7814,2946.4,2946.0,0.37855282]
[1766597329035,2.7814,2946.4,2945.8,3.39464748]
[1766597329368,2.7814,2946.4,2945.7,3.87559812]
[1766597329532,2.7814,2946.4,2945.8,0.03394663]
[1766597331765,2.7814,2946.4,2945.8,3.4285792]
[1766597332375,2.7814,2946.3,2945.8,0.03394663]
[1766597332548,2.7814,2946.3,2945.7,3.39472552]
[1766597332879,3.39581825,2946.6,2946.0,4.80773867]
[1766597332880,2.7834,2946.6,2946.0,4.80773867]
[1766597333339,2.7814,2946.5,2946.0,4.80773867]
[1766597333742,2.7814,2946.5,2945.9,0.03394548]
[1766597333969,2.7814,2946.5,2945.8,3.42855497]
[1766597335065,2.7814,2946.5,2945.8,0.03394663]
[1766597335271,2.7814,2946.4,2945.7,8.88492287]
[1766597335469,2.7814,2946.4,2945.8,0.03494663]
[1766597337982,2.7814,2946.4,2945.8,3.42960893]
[1766597340171,2.7814,2946.3,2945.8,0.03494663]
[1766597340571,2.7814,2946.3,2945.8,3.42957727]
[1766597340778,2.7814,2946.3,2945.9,0.89197766]
[1766597340966,2.7814,2946.3,2945.8,3.42957727]
[1766597341780,2.7814,2946.3,2945.8,0.03494663]
[1766597342378,2.7814,2946.3,2945.8,3.42959795]
[1766597343077,2.7814,2946.3,2945.8,0.03494663]
[1766597343772,2.7814,2946.3,2945.8,0.001]
[1766597348356,2.7814,2946.3,2945.8,0.03494663]
[1766597354672,2.7814,2946.3,2945.8,0.001]
[1766597355806,3.0157,2946.2,2945.8,0.001]
[1766597362373,3.0157,2946.2,2945.8,0.82474598]
[1766597363700,3.39392238,2946.5,2945.9,0.03394548]
[1766597363891,7.29462238,2946.5,2945.9,0.03394548]
[1766597364289,3.0157,2946.4,2945.8,0.82474598]
[1766597364489,3.0157,2946.3,2945.8,0.001]
[1766597370878,3.0157,2946.3,2945.8,0.03494663]
[1766597374113,6.40980214,2946.3,2945.8,0.001]
[1766597374312,3.0157,2946.3,2945.8,0.001]
[1766597375690,2.8251,2946.2,2945.8,0.001]
[1766597376003,2.8251,2946.0,2945.5,0.001]
[1766597378124,2.8928,2945.9,2945.5,0.001]
[1766597378634,2.8928,2945.9,2945.8,0.001]
[1766597378791,3.39436696,2946.1,2945.8,0.001]
[1766597378992,0.6287167,2946.0,2945.8,0.001]
[1766597379292,1.2873,2947.0,2945.8,4.81013426]
[1766597379500,3.7778,2946.9,2945.9,4.84307974]
[1766597379706,3.7778,2946.9,2945.9,4.97890801]
[1766597379904,3.7778,2946.9,2945.9,4.84307974]
[1766597380101,3.7778,2946.9,2946.1,6.78863582]
[1766597380305,3.7778,2946.9,2946.2,0.03394202]
[1766597381643,0.885,2946.8,2946.2,0.03394202]
[1766597382237,2.8928,2946.9,2946.3,6.78817498]
[1766597382423,0.885,2946.8,2946.4,0.03393972]
[1766597383712,0.885,2946.8,2946.4,0.71615119]
[1766597384742,0.885,2946.8,2946.4,4.07614774]
[1766597384931,0.885,2946.8,2946.4,3.39393627]
[1766597385109,0.887,2946.8,2946.4,3.39393627]
[1766597385310,0.887,2946.8,2946.4,6.82184829]
[1766597385510,0.887,2946.8,2946.4,6.78790857]
[1766597385937,0.885,2946.7,2946.5,0.03393857]
[1766597386142,0.885,2947.0,2946.6,0.68218471]
[1766597386679,2.8948,2947.2,2946.6,4.07591709]
[1766597386935,3.7798,2947.2,2946.6,4.07591709]
[1766597387137,2.8948,2947.2,2946.6,4.1098545]
[1766597387511,2.8948,2947.2,2946.6,0.71612212]
[1766597387727,2.8948,2947.2,2946.6,3.42767496]
[1766597389548,0.002,2947.2,2946.6,6.82141689]
[1766597389746,0.002,2947.2,2946.6,6.78747948]
[1766597389950,0.002,2947.2,2946.6,3.39373755]
[1766597390251,0.002,2947.2,2946.6,3.42767496]
[1766597390462,0.002,2947.2,2946.6,4.10982455]
[1766597391356,2.8948,2947.2,2946.6,0.716087]
[1766597391669,2.8948,2947.2,2946.6,6.82140096]
[1766597391825,2.8948,2947.2,2946.6,6.78746355]
[1766597392229,2.8948,2947.2,2946.6,3.39372162]
[1766597392429,2.8948,2947.2,2946.6,3.42765903]
[1766597393864,2.8948,2947.2,2946.6,0.03393741]
[1766597394365,2.8948,2947.2,2946.6,3.4276715]
[1766597394731,2.8948,2947.2,2946.6,0.03393741]
[1766597394928,2.8948,2947.2,2946.3,0.884]
[1766597394929,4.02408171,2947.2,2946.3,0.884]
[1766597395245,2.8928,2947.1,2946.5,3.39380411]
[1766597397467,0.002,2947.2,2946.6,0.03393741]
[1766597399672,0.002,2947.2,2946.6,3.4275739]
[1766597400745,0.002,2947.2,2946.6,0.03393741]
[1766597400950,3.86306033,2947.2,2946.6,0.03393741]
[1766597401351,2.973,2947.1,2946.6,0.03393741]
[1766597401846,2.973,2947.1,2946.6,3.4276616]
[1766597402253,0.002,2947.3,2946.6,6.82140353]
[1766597402478,0.002,2947.5,2946.8,4.80913426]
[1766597402773,0.002,2947.5,2946.9,0.03393396]
[1766597403182,2.975,2947.8,2946.9,0.03393396]
[1766597404580,2.975,2947.8,2947.0,3.3932813]
[1766597404781,2.975,2947.8,2947.1,0.03393166]
[1766597405010,0.002,2947.8,2947.1,0.71598109]
[1766597405279,2.973,2948.9,2947.7,4.80913426]
[1766597405445,2.973,2948.9,2948.0,4.80913426]
[1766597405650,2.973,2948.9,2947.8,0.9179236]
[1766597405651,3.2705,2948.9,2948.1,0.03392015]
[1766597405843,3.2705,2948.9,2947.9,0.03392245]
[1766597406777,3.2705,2948.9,2948.0,3.39213025]
[1766597407077,6.6636412,2948.9,2948.1,0.03392015]
[1766597407284,1.00566353,2948.8,2948.1,0.03392015]
[1766597407577,3.2725,2948.9,2948.1,0.03392015]
[1766597407977,6.66360357,2948.9,2948.1,0.03392015]
[1766597408183,2.973,2948.8,2948.1,0.03392015]
[1766597409152,6.36421154,2948.8,2948.1,0.03392015]
[1766597409345,6.78242308,2948.8,2948.1,0.03392015]
[1766597409549,2.973,2948.6,2947.5,5.29472659]
[1766597409777,2.973,2948.6,2947.6,3.39252037]
[1766597409977,2.973,2948.6,2946.7,1.16305378]
[1766597410159,2.973,2948.6,2947.1,3.39308775]